Cogmind - Beta 15 @@@ ROGUE MODE // 2025.07.05 @ 06:15:30 Player: puppuppit Result: Destroyed by D-53 Grenadier with Mini Grenade Launcher Performance ------------- Evolutions (0) 0 Regions Visited (2) 400 Robots Destroyed (47) 235 Value Destroyed (930) 930 Prototype IDs (0) 0 Alien Tech Used (0) 0 Bonus (0) 0 TOTAL SCORE: 1565 Bonus ------- None Cogmind --------- Core Integrity 0/250 Matter 231/300 Energy 100/100 System Corruption 0% Temperature Cool (0) Movement Treading (160) Location -10/Mines Parts ------- > --- POWER (1) -------- Subdweller Power Source > --- PROPULSION (2) --- Light Treads Light Treads > --- UTILITY (2) ------ Medium Storage Unit Structural Scanner > --- WEAPON (2) ------- Light Cannon Light Cannon > --- INVENTORY (10) --- Wheel Subdweller Monowheel Large Matter Pod (150) High-capacity Matter Pod (200) Subdweller Optics Light Assault Rifle Light Assault Rifle Light Cannon Rocket Launcher Peak State ------------ > --- POWER ------------ Ion Engine > --- PROPULSION ------- Light Treads Light Treads > --- UTILITY ---------- Medium Storage Unit Improved Terrain Scanner > --- WEAPON ----------- EM Pulse Gun Light Assault Rifle > --- INVENTORY -------- Light Treads Small Matter Pod Medium Matter Pod Structural Scanner Light Assault Rifle Light Assault Rifle Light Cannon Light Cannon Light Cannon Grenade Launcher [Rating: 10] Favorites ----------- Power Ion Engine Engine Ion Engine Propulsion Light Treads Treads Light Treads Utility Medium Storage Unit Device Improved Terrain Scanner Storage Medium Storage Unit Weapon Light Assault Rifle Energy Gun EM Pulse Gun Ballistic Gun Light Assault Rifle Ballistic Cannon Light Cannon Launcher Grenade Launcher Build | -11 -10 -10 ------- Run | Yrd Mat Min Slots Evolved . | . . . Power . | . . . Propulsion . | . . . Utility . | . . . Weapon . | . . . Parts Attached 18 | 7 7 4 Power 2 | 1 1 . Engine 2 | 1 1 . Core . | . . . Reactor . | . . . Propulsion 3 | 2 . 1 Treads 3 | 2 . 1 Leg . | . . . Wheel . | . . . Hover . | . . . Flight . | . . . Utility 5 | 2 2 1 Device 2 | 1 1 . Storage 3 | 1 1 1 Processor . | . . . Hackware . | . . . Protection . | . . . Artifact . | . . . Weapon 8 | 2 4 2 Energy Gun 1 | 1 . . Energy Cannon . | . . . Ballistic Gun 2 | 1 1 . Ballistic Cannon 3 | . 2 1 Launcher 2 | . 1 1 Special Weapon . | . . . Impact Weapon . | . . . Slashing Weapon . | . . . Piercing Weapon . | . . . Special Melee Weapon . | . . . Unidentified Prototypes . | . . . Parts Lost 3 | . 2 1 Power . | . . . Propulsion 1 | . . 1 Utility . | . . . Weapon 2 | . 2 . Highest Loss Streak 2 | . 2 1 To Critical Strikes . | . . . Average Backups 8 | . 8 9 Power . | . . . Propulsion 1 | . . 2 Utility 2 | . 1 3 Weapon 4 | . 5 4 Tool/Special . | . . . Unused Backups 8 | . . 8 Power . | . . . Propulsion 2 | . . 2 Utility 5 | . . 5 Weapon 1 | . . 1 Tool/Special . | . . . Average Slot Usage (%) 99 | . 99 100 Engine 14 | . 14 14 Treads 27 | . 27 28 Device 14 | . 14 14 Storage 14 | . 14 14 Energy Gun 5 | . 8 . Ballistic Gun 11 | . 17 . Ballistic Cannon 10 | . 1 27 Peak Build Rating 10 | 9 10 10 Average Rating 9 | 6 9 9 On Entrance 6 | . 9 9 Naked Turns . | . . . Heaviest Build 22 | 14 22 22 Greatest Support 40 | 40 40 40 Greatest Overweight (x) . | . . . Average Overweight (x) . | . . . Largest Inventory Capacity 10 | 8 10 10 Average Capacity 9 | 7 9 10 Most Carried 10 | 1 10 10 Average Carried 8 | . 8 9 Final Capacity 10 | 8 10 10 Final Carried 10 | 1 10 9 Class Distribution -------------------- 100% | Mutant Dominant Class ---------------- Mutant | -10/Materials Mutant | -10/Mines Resources | -11 -10 -10 ----------- Run | Yrd Mat Min Matter Collected 1134 | 334 594 206 Remotely . | . . . Salvage Created 1554 | 194 1088 272 Parts 80 | 13 58 9 Haulers Intercepted 1 | . 1 . Recyclers Shooed 2 | . 2 . Parts Field Recycled . | . . . Retrieved Matter . | . . . Parts Self-Destructed . | . . . Prevented . | . . . Kills | -11 -10 -10 ------- Run | Yrd Mat Min Combat Hostiles Destroyed 27 | . 23 4 Guns 7 | . 7 . Cannons 5 | . 2 3 AOE 15 | . 14 1 Classes Destroyed 10 | 3 6 1 Worker 5 | 2 3 . Tunneler 4 | 3 . 1 Hauler 1 | . 1 . Recycler 8 | 1 5 2 Operator 1 | . 1 . Watcher 3 | . 3 . Swarmer 7 | . 7 . Grunt 16 | . 14 2 Subdweller 2 | . 2 . Assembled 2 | . . 2 Best Kill Streak 5 | 4 5 2 Combat Bots Only 3 | . 3 2 Max Kills in Single Turn 3 | 1 3 1 Gunslinging . | . . . Exploded 3 | . 3 1 Melee . | . . . Uniques/NPCs Destroyed . | . . . Combat | -11 -10 -10 -------- Run | Yrd Mat Min Hostile Shots Fired 108 | . 90 18 Missed 42 | . 36 6 Hits 66 | . 54 12 Melee 1 | . . 1 Projectile 65 | . 54 11 AOE 1 | . . 1 Critical Strikes 2 | . 2 . Damage Taken 978 | . 781 197 Core 279 | . 170 109 Absorbed by Shields . | . . . Regen/Repaired (Parts) 91 | . 91 . Core Remaining (%) 100 | 100 . . Volleys Fired 122 | 14 93 15 Largest 2 | 2 2 2 Hottest 60 | 60 60 60 Shots Fired 234 | 25 180 29 Gun 173 | 25 148 . Cannon 44 | . 16 28 Launcher 17 | . 16 1 Special . | . . . Kinetic 177 | 14 135 28 Thermal . | . . . Explosive 17 | . 16 1 Electromagnetic 40 | 11 29 . Robot Hit Streak 17 | 5 17 5 Robot Miss Streak 3 | 2 3 3 Penetration Max . | . . . Secondary Targets . | . . . Shots Hit Robots 139 | 14 111 14 Core Hits 80 | 8 62 10 Critical Kills . | . . . Critical Parts Destroyed 1 | . 1 . Critical Strikes 2 | . 2 . Destroy 1 | . 1 . Blast 1 | . 1 . Melee Attacks . | . . . Impact . | . . . Slashing . | . . . Piercing . | . . . Sneak Attacks . | . . . Combat Hostiles . | . . . Follow-up Attacks . | . . . Damage Inflicted 2719 | 159 2250 310 Guns 986 | 159 827 . Cannons 466 | . 235 231 Explosions 1267 | . 1188 79 Melee . | . . . Ramming . | . . . Kinetic 1136 | 53 852 231 Thermal 68 | . 68 . Explosive 1199 | . 1120 79 Electromagnetic 316 | 106 210 . Impact . | . . . Slashing . | . . . Piercing . | . . . Highest Corruption . | . . . Average Corruption . | . . . Corruption Purged . | . . . Corruption Blocked . | . . . Overload Shots . | . . . Overflow Damage 17 | . 17 . Projectiles . | . . . Explosions 17 | . 17 . Melee . | . . . Knockbacks 5 | . 2 3 Impact . | . . . Kinetic 5 | . 2 3 Secondary . | . . . Self-Inflicted Damage 56 | . 56 . Shots 2 | . 2 . Rammed . | . . . Targets Rammed . | . . . Kicked . | . . . Crushed . | . . . Highest Temperature 76 | 60 76 5 Average Temperature 21 | 27 20 3 Received Heat Transfer 294 | . 258 36 Siege Activations . | . . . Martial Activations . | . . . Shielding Activations . | . . . Robots Disrupted . | . . . Combat Hostiles . | . . . Robots Corrupted . | . . . Combat Hostiles . | . . . Parts Fried . | . . . Impact Corruptions . | . . . Robots Melted . | . . . Combat Hostiles . | . . . Parts Melted . | . . . Heat Transferred 50 | . 50 . Parts Sabotaged . | . . . Parts Stolen . | . . . Parts Stripped . | . . . Power Chain Reactions 1 | . 1 . Alert | -11 -10 -10 ------- Run | Yrd Mat Min Maximum Alert Level 1 | . 1 . Low Security (%) 77 | 100 64 100 Level 1 22 | . 35 . Level 2 . | . . . Level 3 . | . . . Level 4 . | . . . Level 5 . | . . . High Security . | . . . Max Security . | . . . Peak Influence 379 | 15 379 72 Initial 56 | . . 56 Average 113 | 3 167 17 Influence Increases 887 | 30 755 102 Destroy 0b10 Robot/C 460 | . 420 40 Destroy 0b10 Robot/NC 110 | 30 65 15 Destroy Leader 108 | . 98 10 Allied During Kill 2 | . . 2 Successful Hack 24 | . 24 . Select Force Hacks 30 | . 30 . Disable Machine 75 | . 45 30 Destroy Structure 63 | . 58 5 Lose Combat Pursuer 15 | . 15 . Influence Decreases 887 | 30 610 247 Entered New Map 89 | . . 89 Time Decay 590 | 30 440 120 Lost Part 23 | . 20 3 Lost Ally 35 | . . 35 Purge Threat 150 | . 150 . Squads Dispatched 6 | . 6 . Investigation 4 | . 4 . Extermination . | . . . Reinforcement 2 | . 2 . Assault . | . . . Garrison . | . . . Intercept . | . . . Searches Triggered . | . . . Construction Impeded . | . . . Haulers Reinforced . | . . . Active Scanning Responses . | . . . Cargo Convoy Interrupts . | . . . Stealth | -11 -10 -10 --------- Run | Yrd Mat Min Distress Signals 1 | . 1 . Communications Jammed . | . . . Distress Signals . | . . . Times Spotted 51 | . 40 11 Peak Tracking Total 7 | . 3 7 Tactical Retreats 2 | . 1 1 Traps | -11 -10 -10 ------- Run | Yrd Mat Min Traps Triggered . | . . . Indirectly . | . . . Trap Hack Attempts . | . . . Triggered . | . . . Disarmed . | . . . Reprogrammed . | . . . Reused . | . . . Traps Extracted . | . . . Installed . | . . . Triggered . | . . . Machines | -11 -10 -10 ---------- Run | Yrd Mat Min Machines Disabled 5 | . 3 2 Max in Single Turn 1 | . 1 1 Machines Repaired . | . . . Machines Dismantled . | . . . Machines Sabotaged . | . . . Overloaded Fab Kills . | . . . Hacking | -11 -10 -10 --------- Run | Yrd Mat Min Machines Accessed 9 | . 9 . Terminals 6 | . 6 . Fabricators . | . . . Repair Stations 1 | . 1 . Recycling Units 2 | . 2 . Scanalyzers . | . . . Garrison Access . | . . . Total Hacks 38 | . 38 . Successful 17 | . 17 . Failed 20 | . 20 . Catastrophic 1 | . 1 . Database Lockouts 1 | . 1 . Manual 33 | . 33 . Terminals 26 | . 26 . Fabricators . | . . . Repair Stations 2 | . 2 . Recycling Units 10 | . 10 . Scanalyzers . | . . . Garrison Access . | . . . Terminal Hacks 6 | . 6 . Robot Analysis 2 | . 2 . Branch Access Points 1 | . 1 . Terminal Index 1 | . 1 . Unreport Threat 1 | . 1 . Locate Traps 1 | . 1 . Fabricator Hacks . | . . . Repair Station Hacks 2 | . 2 . Scan Component 1 | . 1 . Repair 1 | . 1 . Recycling Unit Hacks . | . . . Scanalyzer . | . . . Garrison Access Hacks . | . . . Unauthorized Hacks 9 | . 9 . Terminals 4 | . 4 . Botnet 4 | . 4 . Fabricators . | . . . Repair Stations . | . . . Recycling Units 5 | . 5 . Reject 2 | . 2 . Recyclers 1 | . 1 . Mask 1 | . 1 . Tunnel 1 | . 1 . Scanalyzers . | . . . Garrison Access . | . . . Data Cores Recovered . | . . . Used . | . . . Hacking Detections 8 | . 8 . Full Trace Events 2 | . 2 . Feedback Events . | . . . Feedback Blocked . | . . . Robot Schematics Acquired . | . . . Robots Built . | . . . Authchips . | . . . Time . | . . . Total Robot Build Rating . | . . . Part Schematics Acquired . | . . . Parts Built . | . . . Authchips . | . . . Time . | . . . Total Part Build Rating . | . . . Parts Repaired 1 | . 1 . Time 26 | . 26 . Parts Recycled . | . . . Recycled Matter . | . . . Retrieved Matter . | . . . Retrieved Components . | . . . Parts Scanalyzed . | . . . Part Schematics Acquired . | . . . Parts Damaged . | . . . Bothacking | -11 -10 -10 ------------ Run | Yrd Mat Min Used RIF Installer . | . . . Robots Hacked . | . . . Non-combat . | . . . Combat . | . . . Robot Hacks Applied . | . . . Relay Couplers Released . | . . . Fabnet Peak Effective % . | . . . Robots Rewired . | . . . Allies Hacked . | . . . Hacks Repelled . | . . . Allies | -11 -10 -10 -------- Run | Yrd Mat Min Total Allies 2 | . . 2 Largest Group 2 | . . 2 Highest-Rated Group 46 | . . 46 Highest-Rated Ally 31 | . . 31 Total Orders . | . . . Ally Attacks 4 | . . 4 Total Damage 42 | . . 42 Kills . | . . . Allies Corrupted . | . . . Allies Melted . | . . . Intel | -11 -10 -10 ------- Run | Yrd Mat Min Active Infowar (turns) 2114 | 49 1422 643 Terrain 1426 | 49 1377 . Structural 688 | . 45 643 Robot Analysis Total 2 | . 2 . Derelict Logs Recovered . | . . . Drone Launches . | . . . Drone Recoveries . | . . . Exploration | -11 -10 -10 ------------- Run | Yrd Mat Min Turns Passed 2198 | 133 1422 643 Spaces Moved 1108 | 56 685 367 Core 3 | 3 . . Treads 1105 | 53 685 367 Legs . | . . . Wheels . | . . . Hover . | . . . Flight . | . . . Fastest Speed 50 | 50 160 160 Average Speed 159 | 154 160 160 Slowest Speed 160 | 160 160 160 Overloaded Moves . | . . . Propulsion Burnouts . | . . . Robots Hopped . | . . . Potential Cave-ins . | . . . Cave-ins Triggered . | . . . Exploration Rate (%) 49 | 4 93 52 Regions Visited 2 Branch Regions 1 Pre-discovered Areas 1 | . 1 . Known Exits Taken 1 | . 1 . Unknown Exits Taken 1 | 1 . . Scrap Searched . | . . . Spaces Dug . | . . . Terrain Destroyed 62 | . 57 5 Melee . | . . . Projectile . | . . . AOE 62 | . 57 5 Terrain Rammed . | . . . Walls Destroyed . | . . . Machines Disabled . | . . . Actions | -11 -10 -10 --------- Run | Yrd Mat Min Total 1322 | 77 848 397 Wait 39 | . 35 4 Move 1106 | 55 684 367 Hop . | . . . Pick Up 16 | 1 12 3 Fast Attach 9 | 7 2 . Attach 3 | . 2 1 Detach . | . . . Swap 19 | . 16 3 Drop 8 | . 4 4 Fire 122 | 14 93 15 Melee . | . . . Ram . | . . . Kick . | . . . Crush . | . . . Escape Stasis . | . . . Rewire . | . . . Trap . | . . . Miscellaneous . | . . . Route ------- -11/Scrapyard -10/Materials (discovered 5 exits: [*Mat x3] / *Min / [*Sub]) -10/Mines (discovered 2 exits: [*Mat] / [*Sub]) History --------- Turn | Location | Event 46 | -11/Scrapyard | Discovered new exit (range 15) 134 | -11/Scrapyard | Entered Materials 309 | -10/Materials | Build established: Mutant 454 | -10/Materials | Discovered new exit (range 4) 601 | -10/Materials | Discovered new exit (range 9) 720 | -10/Materials | Central database locked down 822 | -10/Materials | Discovered new exit (range 7) 884 | -10/Materials | Repaired Lgt. Treads 1027 | -10/Materials | Discovered new exit (range 4) 1251 | -10/Materials | Discovered new exit (range 15) 1274 | -10/Materials | Identified exit to Mines 1334 | -10/Materials | Derelicts attacked the area 1383 | -10/Materials | Core integrity fell below 50% 1556 | -10/Materials | Entered Mines 1643 | -10/Mines | A weapon hastily lodged in a ceiling crevice suddenly fell to the ground 1699 | -10/Mines | Received a Rocket Launcher from a helpful Derelict 1721 | -10/Mines | Discovered new exit (range 9) 1766 | -10/Mines | Found a Scrap Suit stashed away for nefarious purposes 1959 | -10/Mines | Found a hidden stash of uninstalled traps 2015 | -10/Mines | Discovered new exit (range 9) 2021 | -10/Mines | Core integrity fell below 20% 2146 | -10/Mines | Assembled infested the area 2199 | -10/Mines | Destroyed by D-53 Grenadier with Mini Grenade Launcher Last Messages --------------- 02020_ Acquired 10 matter. 02021_ G-47 Trooper destroyed. 02021_ Seismic Survey Station disabled. 02022_ Acquired 11 matter. 02024_ Acquired 10 matter. 02024_ G-34 Mercenary destroyed. 02025_ Acquired 8 matter. 02054_ R-06 Scavenger destroyed. 02057_ Acquired 8 matter. 02110_ T-07 Excavator destroyed. 02113_ Acquired 8 matter. 02121_ R-06 Scavenger destroyed. 02124_ Acquired 8 matter. 02146_ ALERT: Infestation in the mines, dispatching Demolisher response squad. 02160_ K-01 Serf destroyed. 02176_ Lgt. Treads destroyed. 02177_ as-87946 destroyed. 02186_ as-27586 destroyed. 02193_ as-22215 knocked back. Map ----- +----------------------------------------------------+ | ?????????????????????????????????????????????????? | | ???????????????????????????????????#####?????????? | | ?????????????????????????????????########????????? | | ?????????????????????????????????### ###????????? | | ?????????????????????????????????## ##????????? | | ????????????????????????????????? #????????# | | ?????????????????????????????????## ???????#### | | ???????????????????????? ????????## ????????#### | | ???????????????????????? ????????## ???????## | | ???????????????????????? ????????## ##???????## | | ???????????????????????? ????????## ##???????## % | | ???????????????????????? ????????## ##????##### " | | ??????????????????????## ##??????## ##????##### " | | ??????????????????????## ##??????## ########% " | | ?????????????????????? !% ??????## ########!%# | | ??????????????????????##%##??????## =!%|%#### =# | | ??????????????????????##!##??????####### #### ### | | ??????????????????????## ##??????#######!#### ### | | ??????????????????????## ##???????????##=#### ##? | | ??????????????????????## ##??????????###%#### ##? | | ??????????????????????##%##?????????####[#### ##? | | ??????????????????????##$##?????????###=%#### ##? | | ??????????????????????##%##??######### ### ### | | ??????????????????????##a######## #### ### | | ??????????????????????## #### ### | | ??????????????????????## @ !%= # ### | | ??????????????????????####### d % ### ### | | ??????????????????????####### # ##### ### | | ????????????????????????????#### ##### ### | | ?????????????????????????????### ##?## ## | | ??????????????????????????????## ##?## # | | ??????????????????????????????## ##?## # | | ??????????????????????????????## ##?### ## | | ?????????????????????????????### ###### ### | | ?????????????????????????????## #### #### | | ????????????????????????????? ## #### | | ????????????????????????????? ### | | ?????????????????????????????? ### ## | | ????????????????????????????# ####### # | | ????????????????????????????#### ######### | | ????????????????????????????#########???#### | | ????????????????????????????########?????#### | | ???????????????????????????#######??????##### | | ??????????????????????????#### ###??????### # | | ??????????????????????????### ###?????## # | | ??????????????????????????## ####????## | | ??????????????????????????## ####???## | | ?????????????????????????? # ###???### ##### | | ?????????????????????????? + ######## ###### | | ??????????????######?????? + ######## ###### | +----------------------------------------------------+ Best States ------------- Heat Dissipation 25 Energy Generation 15 Energy Capacity 250 Matter Stores 300 Matter Capacity 300 Sight Range 16 Terrain Scan Range 16 Terrain Scan Density 10 Evasion (%) 40 Recoil Reduction 2 Item Schematics ----------------- None Robot Schematics ------------------ None Fabricated ------------ Nothing Repaired ---------- Lgt. Treads | 35% | -10/Materials Alien Tech Used ----------------- None Achievements -------------- None Challenges ------------ None Game ------ Seed InterceptCoolantWartreads Manual? 0 Play Time 00:13:05 Cumulative 371.1 hours Start 2025.07.05 @ 06:04:41 End 2025.07.05 @ 06:15:30 Sessions 1 Manual Loads 0 Difficulty Rogue Special Mode None Game No. 216 Rogue 216 Adventurer 0 Explorer 0 Win Type - Total 4 Types 2/0/1/1/0/0/0/0/0/0 Lore% 84 Gallery% 73 Achievement% 67 Wizard Run 0 Options --------- Layout 2 ASCII 0 Keyboard 1 Movement Vi Keybinds 0 Fullscreen 2 Font 16/Tamsyn Map View 55x47 Zoom Use 0% Tactical HUD 1 Map Filters NONE Filters NONE Steam 0 RUN: 665e9def-b596-4b8f-8b3c-64a03750af4c